Cogmind - Beta 13 @@@ ROGUE MODE // 2024.07.17 @ 09:39:27 Player: buwwet Result: Self-destructed Performance ------------- Evolutions (3) 1500 Regions Visited (8) 1600 Robots Destroyed (69) 345 Value Destroyed (1661) 1661 Prototype IDs (6) 120 Alien Tech Used (0) 0 Bonus (0) 0 TOTAL SCORE: 5226 Bonus ------- None Cogmind --------- Core Integrity 690/700 Matter 258/300 Energy 125/125 System Corruption 0% Temperature Cool (0) Movement Flying (54) Location -7/Factory Parts ------- > --- POWER (2) -------- Light Ion Engine > --- PROPULSION (4) --- Medium Treads Xenon Bombardment Thruster Xenon Bombardment Thruster Xenon Bombardment Thruster > --- UTILITY (5) ------ Medium Storage Unit Machine Analyzer Sensor Array Signal Interpreter Hacking Suite > --- WEAPON (2) ------- Makeshift Axe > --- INVENTORY (10) --- Light Nuclear Core Light Nuclear Core Improved Titanium Leg Airjet Improved Terrain Scanner Improved Melee Analysis Suite Makeshift Hacking Suite System Shield Gatling Laser Remote Datajack Peak State ------------ > --- POWER ------------ Light Ion Engine Light Nuclear Core > --- PROPULSION ------- Medium Treads Xenon Bombardment Thruster Xenon Bombardment Thruster Xenon Bombardment Thruster > --- UTILITY ---------- Medium Storage Unit Machine Analyzer Sensor Array Signal Interpreter Hacking Suite > --- WEAPON ----------- Makeshift Axe > --- INVENTORY -------- Improved Titanium Leg Hover Unit Airjet Improved Terrain Scanner Improved Melee Analysis Suite Hacking Suite Makeshift Hacking Suite System Shield Gatling Laser Remote Datajack [Rating: 36] Favorites ----------- Power Light Ion Engine Engine Light Ion Engine Power Core Light Nuclear Core Propulsion Light Treads Treads Light Treads Leg Carbon-fiber Leg Wheel Compact Wheel Flight Unit Xenon Bombardment Thruster Utility Medium Storage Unit Device Seismic Detector Storage Medium Storage Unit Processor Machine Analyzer Hackware Makeshift Hacking Suite Weapon Small Laser Energy Gun Small Laser Energy Cannon Particle Cannon Ballistic Gun Improved Assault Rifle Impact Weapon Hammer Slashing Weapon Makeshift Axe Special Melee Weapon Datajack Build | -11 -10 -10 -9 -9 -9 -8 -8 -7 ------- Run | Yrd Mat Min Mat Min Exi Min Mat Fac Slots Evolved 6 | . . . 2 . . . 2 2 Power 1 | . . . . . . . 1 . Propulsion 2 | . . . 1 . . . . 1 Utility 3 | . . . 1 . . . 1 1 Weapon . | . . . . . . . . . Parts Attached 68 | 6 5 . 12 6 5 20 7 7 Power 9 | 1 1 . 2 1 . 1 . 3 Engine 7 | 1 1 . 1 1 . 1 . 2 Core 2 | . . . 1 . . . . 1 Reactor . | . . . . . . . . . Propulsion 20 | 2 . . 3 2 2 6 4 1 Treads 9 | 2 . . 1 2 2 1 . 1 Leg 7 | . . . 1 . . 5 1 . Wheel 1 | . . . 1 . . . . . Hover . | . . . . . . . . . Flight 3 | . . . . . . . 3 . Utility 15 | 1 3 . 2 . 1 3 2 3 Device 7 | . 2 . . . . 3 1 1 Storage 2 | 1 1 . . . . . . . Processor 4 | . . . 2 . . . 1 1 Hackware 2 | . . . . . 1 . . 1 Protection . | . . . . . . . . . Artifact . | . . . . . . . . . Weapon 24 | 2 1 . 5 3 2 10 1 . Energy Gun 7 | 2 1 . 2 . . 1 1 . Energy Cannon 2 | . . . . 1 . 1 . . Ballistic Gun 7 | . . . 2 . 1 4 . . Ballistic Cannon . | . . . . . . . . . Launcher . | . . . . . . . . . Special Weapon . | . . . . . . . . . Impact Weapon 3 | . . . 1 1 1 . . . Slashing Weapon 3 | . . . . . . 3 . . Piercing Weapon . | . . . . . . . . . Special Melee Weapon 2 | . . . . 1 . 1 . . Unidentified Prototypes 1 | . . . 1 . . . . . Parts Lost 13 | . . . 2 3 . 8 . . Power 3 | . . . 1 1 . 1 . . Propulsion 5 | . . . . 1 . 4 . . Utility 1 | . . . . . . 1 . . Weapon 4 | . . . 1 1 . 2 . . Highest Loss Streak 4 | . . . 1 3 . 4 . . To Critical Strikes . | . . . . . . . . . Average Slot Usage (%) 96 | . 98 100 99 98 99 93 87 79 Engine 9 | . 14 14 4 9 11 7 9 7 Core 1 | . . . 6 . . . . . Treads 21 | . 28 28 22 21 26 20 . 3 Leg 6 | . . . 8 11 6 11 21 . Flight 1 | . . . . . . . 5 23 Device 6 | . 12 14 5 . . 5 9 7 Storage 11 | . 14 14 11 11 11 11 9 7 Processor 11 | . . . 16 22 18 11 17 15 Hackware 1 | . . . . . 3 3 . 6 Energy Gun 12 | . 28 28 14 1 . 4 7 . Energy Cannon 2 | . . . . 1 11 3 . . Ballistic Gun 4 | . . . 7 11 10 5 . . Slashing Weapon 2 | . . . . . . 8 9 7 Naked Turns . | . . . . . . . . . Heaviest Build 27 | 12 18 16 24 27 27 27 21 17 Greatest Support 60 | 40 40 40 40 40 60 60 30 18 Greatest Overweight (x) 6 | 1 . . 1 . . 4 6 . Average Overweight (x) . | . . . . . . . . . Largest Inventory Capacity 10 | 8 10 10 10 10 10 10 10 10 Average Capacity 9 | 7 9 10 10 10 10 10 10 10 Most Carried 10 | 6 10 10 10 10 10 10 10 10 Average Carried 9 | 3 9 10 9 9 9 9 9 9 Final Capacity 10 | 8 10 10 10 10 10 10 10 10 Final Carried 10 | 6 10 10 10 10 10 9 10 10 Class Distribution -------------------- 53% | Mutant 35% | Scavenger-Mutant 5% | Scavenger-Scout 3% | Scavenger-Assassin Dominant Class ---------------- Mutant | -10/Materials Mutant | -10/Mines Scavenger-Mutant | -9/Materials Scavenger-Mutant | -9/Mines Scavenger-Mutant | -9/Exiles Mutant | -8/Mines Scavenger-Assassin | -8/Materials Scavenger-Scout | -7/Factory Resources | -11 -10 -10 -9 -9 -9 -8 -8 -7 ----------- Run | Yrd Mat Min Mat Min Exi Min Mat Fac Matter Collected 1040 | 204 106 . 225 99 . 287 18 101 Remotely . | . . . . . . . . . Salvage Created 2186 | 126 357 . 864 129 . 423 159 128 Parts 153 | 10 37 . 60 5 . 27 5 9 Haulers Intercepted 2 | . 1 . 1 . . . . . Recyclers Shooed . | . . . . . . . . . Parts Field Recycled . | . . . . . . . . . Retrieved Matter . | . . . . . . . . . Parts Self-Destructed . | . . . . . . . . . Prevented . | . . . . . . . . . Kills | -11 -10 -10 -9 -9 -9 -8 -8 -7 ------- Run | Yrd Mat Min Mat Min Exi Min Mat Fac Combat Hostiles Destroyed 48 | . 10 . 17 3 . 14 3 1 Melee 7 | . . . . . . 5 1 1 Guns 37 | . 10 . 17 2 . 6 2 . Cannons 3 | . . . . . . 3 . . Classes Destroyed 11 | 2 4 . 3 1 . . . 1 Worker 1 | . . . 1 . . . . . Tunneler 3 | 2 . . . . . 1 . . Hauler 2 | . 1 . 1 . . . . . Recycler 2 | 1 . . . . . 1 . . Operator 4 | . . . 2 . . . . 2 Watcher 9 | . 3 . 4 . . . 1 1 Swarmer 19 | . 6 . 3 . . 10 . . Grunt 21 | . 4 . 9 2 . 4 2 . Brawler 1 | . . . . 1 . . . . Sentry 6 | . . . 5 . . . 1 . Hunter 1 | . . . . . . . . 1 Best Kill Streak 5 | 3 4 . 3 2 . 5 2 1 Combat Bots Only 4 | . 3 . 3 2 . 4 2 1 Max Kills in Single Turn 2 | 1 2 . 2 1 . 2 1 1 Gunslinging 1 | . 1 . . . . . . . Exploded . | . . . . . . . . . Melee 1 | . . . . . . 1 1 1 Uniques/NPCs Destroyed . | . . . . . . . . . Combat | -11 -10 -10 -9 -9 -9 -8 -8 -7 -------- Run | Yrd Mat Min Mat Min Exi Min Mat Fac Hostile Shots Fired 331 | . 40 . 72 34 . 148 12 25 Missed 91 | . 8 . 21 9 . 33 3 17 Damage Taken 2847 | . 395 14 618 311 . 1307 139 63 Core 554 | . 125 . 112 43 . 214 50 10 Absorbed by Shields . | . . . . . . . . . Regen/Repaired (Parts) 63 | . . . 63 . . . . . Core Remaining (%) 61 | 100 . 50 . . . 7 90 . Volleys Fired 194 | 8 46 . 59 15 1 58 7 . Largest 2 | 2 2 . 2 2 1 2 1 . Hottest 115 | 80 80 . 115 98 68 91 80 . Shots Fired 345 | 16 92 . 115 28 2 85 7 . Gun 316 | 16 92 . 115 28 . 58 7 . Cannon 29 | . . . . . 2 27 . . Launcher . | . . . . . . . . . Special . | . . . . . . . . . Kinetic 85 | . . . 35 13 . 37 . . Thermal 260 | 16 92 . 80 15 2 48 7 . Explosive . | . . . . . . . . . Electromagnetic . | . . . . . . . . . Robot Hit Streak 18 | 2 12 . 14 18 . 6 12 . Robot Miss Streak 6 | 3 4 . 4 2 2 6 2 . Penetration Max . | . . . . . . . . . Secondary Targets 3 | . 2 . 1 . . . . . Max Gunslinging Chain 1 | . 1 . 1 . . . . . Shots Hit Robots 241 | 7 57 . 76 26 . 56 12 7 Core Hits 98 | 4 23 . 34 3 . 21 10 3 Critical Kills . | . . . . . . . . . Critical Parts Destroyed . | . . . . . . . . . Critical Strikes 9 | . . . 3 1 . 4 . 1 Burn 7 | . . . 3 1 . 3 . . Sever 2 | . . . . . . 1 . 1 Melee Attacks 65 | . . . 2 5 4 25 8 21 Impact 8 | . . . 2 2 4 . . . Slashing 54 | . . . . . . 25 8 21 Piercing . | . . . . . . . . . Sneak Attacks 6 | . . . . 3 . 2 . 1 Combat Hostiles 1 | . . . . . . 1 . . Follow-up Attacks . | . . . . . . . . . Damage Inflicted 4495 | 87 646 . 1356 440 . 1240 345 381 Guns 2963 | 87 646 . 1356 384 . 330 160 . Cannons 350 | . . . . . . 350 . . Explosions . | . . . . . . . . . Melee 1182 | . . . . 56 . 560 185 381 Ramming . | . . . . . . . . . Kinetic 708 | . . . 341 151 . 216 . . Thermal 2605 | 87 646 . 1015 233 . 464 160 . Explosive . | . . . . . . . . . Electromagnetic . | . . . . . . . . . Impact 56 | . . . . 56 . . . . Slashing 1126 | . . . . . . 560 185 381 Piercing . | . . . . . . . . . Highest Corruption 2 | . . . . 2 2 2 . . Average Corruption 2 | . . . . 2 2 2 . . Corruption Purged . | . . . . . . . . . Corruption Blocked . | . . . . . . . . . Effects 27 | . . . . 4 5 18 . . Message Errors 3 | . . . . . . 3 . . Matter Fused 6 | . . . . 2 1 3 . . Heat Flow Errors 1 | . . . . . . 1 . . Energy Discharges 7 | . . . . 1 1 5 . . Parts Fused 1 | . . . . . . 1 . . Data Loss (minor) 3 | . . . . 1 1 1 . . Misfires 4 | . . . . . 1 3 . . Alerts 2 | . . . . . 1 1 . . Overload Shots . | . . . . . . . . . Overflow Damage 169 | . . . . 7 . 59 8 95 Projectiles 3 | . . . . . . 3 . . Explosions . | . . . . . . . . . Melee 166 | . . . . 7 . 56 8 95 Knockbacks . | . . . . . . . . . Impact . | . . . . . . . . . Kinetic . | . . . . . . . . . Secondary . | . . . . . . . . . Self-Inflicted Damage . | . . . . . . . . . Shots . | . . . . . . . . . Rammed . | . . . . . . . . . Targets Rammed . | . . . . . . . . . Kicked . | . . . . . . . . . Crushed . | . . . . . . . . . Highest Temperature 368 | 72 114 . 285 298 33 368 176 . Average Temperature 86 | 32 33 . 76 153 18 127 69 . Received Heat Transfer 999 | . 159 . 207 132 . 396 99 6 Effects 5 | . . . . 3 . 2 . . Energy Bleed 2 | . . . . . . 2 . . Interference 3 | . . . . 3 . . . . Siege Activations . | . . . . . . . . . Robots Corrupted . | . . . . . . . . . Combat Hostiles . | . . . . . . . . . Parts Fried . | . . . . . . . . . Impact Corruptions 1 | . . . . 1 . . . . Robots Melted . | . . . . . . . . . Combat Hostiles . | . . . . . . . . . Parts Melted 5 | . 2 . 1 1 . 1 . . Heat Transferred 5669 | 200 1450 . 2115 481 . 1073 350 . Parts Sabotaged . | . . . . . . . . . Parts Stolen . | . . . . . . . . . Parts Stripped . | . . . . . . . . . Power Chain Reactions . | . . . . . . . . . Alert | -11 -10 -10 -9 -9 -9 -8 -8 -7 ------- Run | Yrd Mat Min Mat Min Exi Min Mat Fac Peak Influence 297 | 15 201 . 297 127 . 240 179 138 Initial 81 | . 9 . . 72 . . 27 81 Average 71 | 5 38 . 101 122 . 68 96 72 Maximum Alert Level 1 | . 1 . 1 . . 1 . . Low Security (%) 94 | 100 97 100 82 100 . 95 100 100 Level 1 5 | . 2 . 17 . . 4 . . Level 2 . | . . . . . . . . . Level 3 . | . . . . . . . . . Level 4 . | . . . . . . . . . Level 5 . | . . . . . . . . . High Security . | . . . . . . . . . Max Security . | . . . . . . . . . Squads Dispatched 3 | . . . 1 . . . . 2 Investigation 1 | . . . . . . . . 1 Extermination 1 | . . . . . . . . 1 Reinforcement 1 | . . . 1 . . . . . Assault . | . . . . . . . . . Garrison . | . . . . . . . . . Intercept . | . . . . . . . . . Searches Triggered . | . . . . . . . . . Construction Impeded . | . . . . . . . . . Haulers Reinforced . | . . . . . . . . . Active Scanning Responses . | . . . . . . . . . Cargo Convoy Interrupts . | . . . . . . . . . Stealth | -11 -10 -10 -9 -9 -9 -8 -8 -7 --------- Run | Yrd Mat Min Mat Min Exi Min Mat Fac Distress Signals 4 | . 2 . 1 . . . 1 . Communications Jammed . | . . . . . . . . . Distress Signals . | . . . . . . . . . Times Spotted 95 | . 18 . 30 3 . 26 12 6 Peak Tracking Total 9 | . 5 . 5 3 . 6 9 3 Tactical Retreats 13 | . 2 . . . . 9 . 2 Traps | -11 -10 -10 -9 -9 -9 -8 -8 -7 ------- Run | Yrd Mat Min Mat Min Exi Min Mat Fac Traps Triggered 1 | . 1 . . . . . . . Indirectly . | . . . . . . . . . Trap Hack Attempts . | . . . . . . . . . Triggered . | . . . . . . . . . Disarmed . | . . . . . . . . . Reprogrammed . | . . . . . . . . . Reused . | . . . . . . . . . Traps Extracted . | . . . . . . . . . Installed . | . . . . . . . . . Triggered . | . . . . . . . . . Machines | -11 -10 -10 -9 -9 -9 -8 -8 -7 ---------- Run | Yrd Mat Min Mat Min Exi Min Mat Fac Machines Disabled 2 | . . . 2 . . . . . Max in Single Turn 1 | . . . 1 . . . . . Machines Repaired . | . . . . . . . . . Machines Dismantled . | . . . . . . . . . Machines Sabotaged . | . . . . . . . . . Overloaded Fab Kills . | . . . . . . . . . Hacking | -11 -10 -10 -9 -9 -9 -8 -8 -7 --------- Run | Yrd Mat Min Mat Min Exi Min Mat Fac Machines Accessed 24 | . 8 1 5 . . . 1 9 Terminals 16 | . 7 . 2 . . . . 7 Fabricators 2 | . . . . . . . . 2 Repair Stations 1 | . . . 1 . . . . . Recycling Units 2 | . 1 . 1 . . . . . Scanalyzers 2 | . . . 1 . . . 1 . Garrison Access . | . . . . . . . . . Total Hacks 59 | . 18 1 19 . . . 3 18 Successful 33 | . 7 1 12 . . . 3 10 Failed 26 | . 11 . 7 . . . . 8 Catastrophic 5 | . 4 . 1 . . . . . Database Lockouts . | . . . . . . . . . Manual 29 | . 13 . 9 . . . . 7 Terminals 37 | . 15 . 9 . . . . 13 Fabricators 5 | . . . . . . . . 5 Repair Stations 4 | . . . 4 . . . . . Recycling Units 4 | . 3 . 1 . . . . . Scanalyzers 8 | . . . 5 . . . 3 . Garrison Access . | . . . . . . . . . Terminal Hacks 14 | . 5 1 2 . . . . 6 Robot Analysis 1 | . 1 . . . . . . . Prototype ID Bank 2 | . 1 . . . . . . 1 Open Door 1 | . . 1 . . . . . . Open DSF 3 | . . . . . . . . 3 Branch Access Points 1 | . 1 . . . . . . . Terminal Index 3 | . 1 . 1 . . . . 1 Unreport Threat 3 | . 1 . 1 . . . . 1 Fabricator Hacks 3 | . . . . . . . . 3 Load Schematic 2 | . . . . . . . . 2 Build 1 | . . . . . . . . 1 Repair Station Hacks 4 | . . . 4 . . . . . Scan Component 2 | . . . 2 . . . . . Repair 2 | . . . 2 . . . . . Recycling Unit Hacks 3 | . 2 . 1 . . . . . Report Inventory 2 | . 1 . 1 . . . . . Retrieve Components 1 | . 1 . . . . . . . Scanalyzer 7 | . . . 4 . . . 3 . Insert Component 3 | . . . 2 . . . 1 . Analyze 4 | . . . 2 . . . 2 . Garrison Access Hacks . | . . . . . . . . . Unauthorized Hacks 2 | . . . 1 . . . . 1 Terminals 2 | . . . 1 . . . . 1 Botnet 2 | . . . 1 . . . . 1 Fabricators . | . . . . . . . . . Repair Stations . | . . . . . . . . . Recycling Units . | . . . . . . . . . Scanalyzers . | . . . . . . . . . Garrison Access . | . . . . . . . . . Data Cores Recovered 2 | . . . . . . . . 2 Used 1 | . . . . . . . . 1 Hacking Detections 19 | . 8 . 4 . . . 1 6 Full Trace Events 2 | . . . 1 . . . . 1 Feedback Events . | . . . . . . . . . Feedback Blocked . | . . . . . . . . . Robot Schematics Acquired . | . . . . . . . . . Robots Built . | . . . . . . . . . Authchips . | . . . . . . . . . Time . | . . . . . . . . . Total Robot Build Rating . | . . . . . . . . . Part Schematics Acquired 3 | . . . 2 . . . 1 . Parts Built 2 | . . . . . . . . 2 Authchips . | . . . . . . . . . Time 36 | . . . . . . . . 36 Total Part Build Rating 6 | . . . . . . . . 6 Parts Repaired 2 | . . . 2 . . . . . Time 79 | . . . 79 . . . . . Parts Recycled . | . . . . . . . . . Recycled Matter . | . . . . . . . . . Retrieved Matter . | . . . . . . . . . Retrieved Components 9 | . 9 . . . . . . . Parts Scanalyzed 3 | . . . 2 . . . 1 . Part Schematics Acquired 3 | . . . 2 . . . 1 . Parts Damaged 1 | . . . 1 . . . . . Bothacking | -11 -10 -10 -9 -9 -9 -8 -8 -7 ------------ Run | Yrd Mat Min Mat Min Exi Min Mat Fac Used RIF Installer . | . . . . . . . . . Robots Hacked 2 | . . . . 2 . . . . Non-combat 2 | . . . . 2 . . . . Combat . | . . . . . . . . . Robot Hacks Applied 3 | . . . . 3 . . . . parse_system 1 | . . . . 1 . . . . no_distress 2 | . . . . 2 . . . . Relay Couplers Released . | . . . . . . . . . Fabnet Peak Effective % . | . . . . . . . . . Robots Rewired . | . . . . . . . . . Allies Hacked . | . . . . . . . . . Hacks Repelled . | . . . . . . . . . Allies | -11 -10 -10 -9 -9 -9 -8 -8 -7 -------- Run | Yrd Mat Min Mat Min Exi Min Mat Fac Total Allies . | . . . . . . . . . Largest Group . | . . . . . . . . . Highest-Rated Group . | . . . . . . . . . Highest-Rated Ally . | . . . . . . . . . Total Orders . | . . . . . . . . . Ally Attacks . | . . . . . . . . . Total Damage . | . . . . . . . . . Kills . | . . . . . . . . . Allies Corrupted . | . . . . . . . . . Allies Melted . | . . . . . . . . . Intel | -11 -10 -10 -9 -9 -9 -8 -8 -7 ------- Run | Yrd Mat Min Mat Min Exi Min Mat Fac Robot Analysis Total 1 | . 1 . . . . . . . Derelict Logs Recovered 2 | . . 1 . 1 . . . . Drone Launches . | . . . . . . . . . Drone Recoveries . | . . . . . . . . . Exploration | -11 -10 -10 -9 -9 -9 -8 -8 -7 ------------- Run | Yrd Mat Min Mat Min Exi Min Mat Fac Turns Passed 5621 | 114 1384 159 1283 392 674 1016 284 315 Spaces Moved 3094 | 50 706 99 515 187 406 482 150 499 Core 10 | 5 . . . . . 4 1 . Treads 2196 | 45 706 99 514 187 406 239 . . Legs 318 | . . . 1 . . 239 78 . Wheels . | . . . . . . . . . Hover . | . . . . . . . . . Flight 570 | . . . . . . . 71 499 Fastest Speed 34 | 50 160 160 160 160 160 120 34 34 Average Speed 135 | 152 160 160 160 160 160 153 83 37 Slowest Speed 350 | 160 160 160 190 160 160 260 350 54 Overloaded Moves . | . . . . . . . . . Propulsion Burnouts . | . . . . . . . . . Robots Hopped . | . . . . . . . . . Cave-ins Triggered . | . . . . . . . . . Exploration Rate (%) 49 | 5 76 48 54 50 89 86 19 15 Regions Visited 8 Branch Regions 4 Pre-discovered Areas . | . . . . . . . . . Known Exits Taken 3 | . 1 . . 1 . . 1 . Unknown Exits Taken 5 | 1 . 1 1 . 1 1 . . Scrap Searched 3 | . . . . 2 . 1 . . Spaces Dug 17 | . . . 1 . 3 . . 13 Terrain Destroyed 17 | . . . 1 . 3 . . 13 Melee 17 | . . . 1 . 3 . . 13 Projectile . | . . . . . . . . . AOE . | . . . . . . . . . Terrain Rammed . | . . . . . . . . . Walls Destroyed . | . . . . . . . . . Machines Disabled . | . . . . . . . . . Actions | -11 -10 -10 -9 -9 -9 -8 -8 -7 --------- Run | Yrd Mat Min Mat Min Exi Min Mat Fac Total 4119 | 69 871 100 857 245 425 650 296 606 Wait 612 | . 102 2 251 32 . 59 103 63 Move 3086 | 49 705 98 514 186 405 481 149 499 Hop . | . . . . . . . . . Pick Up 42 | 6 7 . 9 1 3 2 9 5 Fast Attach 29 | 6 1 . 4 1 2 5 3 7 Attach 13 | . 1 . 3 2 . 5 2 . Detach 5 | . 1 . . . . 1 2 1 Swap 26 | . 3 . 5 3 3 10 2 . Drop 46 | . 5 . 10 . 6 4 11 10 Fire 194 | 8 46 . 59 15 1 58 7 . Melee 65 | . . . 2 5 4 25 8 21 Ram . | . . . . . . . . . Kick . | . . . . . . . . . Crush . | . . . . . . . . . Escape Stasis . | . . . . . . . . . Rewire 1 | . . . . . 1 . . . Trap . | . . . . . . . . . Miscellaneous . | . . . . . . . . . Route ------- -11/Scrapyard -10/Materials (discovered 4 exits: *Mat x3 / *Min) -10/Mines -9/Materials (discovered 2 exits: *Mat / [*Min]) -9/Mines (discovered 2 exits: *Mat / *Exi) -9/Exiles (discovered 2 exits: [*Min x2]) -8/Mines -8/Materials -7/Factory (discovered 2 exits: *Fac x2) History --------- Turn | Location | Event 9 | -11/Scrapyard | Discovered new exit (range 15) 115 | -11/Scrapyard | Entered Materials 189 | -10/Materials | Identified exit to Mines 308 | -10/Materials | Build established: Mutant 400 | -10/Materials | Discovered new exit (range 7) 621 | -10/Materials | Discovered new exit (range 4) 1463 | -10/Materials | Discovered new exit (range 15) 1499 | -10/Materials | Entered Mines 1505 | -10/Mines | Assembled infested the area 1510 | -10/Mines | Assisted by a Guerilla fighting off Assembled 1523 | -10/Mines | Learned 2 Materials zone layouts 1528 | -10/Mines | Met a Derelict who couldn't figure out how to use a Trap Extractor 1628 | -10/Mines | Discovered new exit (range 5) 1658 | -10/Mines | Entered Materials 1658 | -9/Materials | Evolved 2 slots: Propulsion x1, Utility x1 1801 | -9/Materials | Repaired Lgt. Treads 2174 | -9/Materials | Repaired Broken Lgt. Nuclear Core 2195 | -9/Materials | Build established: Scavenger-Mutant 2290 | -9/Materials | Discovered new exit (range 18) 2474 | -9/Materials | Discovered new exit (range 9) 2941 | -9/Materials | Entered Mines 3034 | -9/Mines | Lost 3 parts (1p1n1w) 3057 | -9/Mines | Discovered new exit (range 18) 3204 | -9/Mines | Found a hidden stash of uninstalled traps 3212 | -9/Mines | Identified exit to Exiles 3327 | -9/Mines | Deemed a non-threat by the Exiles lab entrance 3333 | -9/Mines | Entered Exiles 3333 | -9/Exiles | Found Exiles lab destroyed 3354 | -9/Exiles | Discovered new exit (range 17) 3989 | -9/Exiles | Build established: Mutant 3990 | -9/Exiles | Discovered new exit (range 14) 4007 | -9/Exiles | Entered Mines 4324 | -8/Mines | Core integrity fell below 50% 4402 | -8/Mines | Lost 4 parts (1n1u2w) 4568 | -8/Mines | Lost 3 parts (1p2n) 4787 | -8/Mines | Core integrity fell below 20% 5013 | -8/Mines | Discovered new exit (range 6) 5023 | -8/Mines | Entered Materials 5023 | -8/Materials | Evolved 2 slots: Power x1, Utility x1 5297 | -8/Materials | Discovered new exit (range 16) 5306 | -8/Materials | Identified exit to Factory 5307 | -8/Materials | Entered Factory 5307 | -7/Factory | Evolved 2 slots: Propulsion x1, Utility x1 5331 | -7/Factory | Discovered new exit (range 6) 5333 | -7/Factory | Identified exit to Factory 5412 | -7/Factory | Discovered exit to Factory (range 9) 5538 | -7/Factory | Fabricated Lgt. Nuclear Core (x2) 5622 | -7/Factory | Self-destructed Last Messages --------------- 05587_ Acquired Lgt. Nuclear Core. 05589_ Dropped Lgt. Ion Engine. 05589_ Acquired Lgt. Ion Engine. 05591_ Dropped Hacking Suite. 05591_ U-05 Engineer builds a Wall. 05591_ Acquired Hacking Suite. 05592_ Dropped Hacking Suite. 05594_ Dropped Hover Unit. 05594_ Acquired Lgt. Nuclear Core. 05601_ Neutrino Reactor explodes. 05601_ Fabricator disabled. 05602_ P-60 Hacker resets Y-54 Guardian, system corruption cleaned. 05604_ P-60 Hacker resets U-05 Engineer, system corruption cleaned. 05605_ U-05 Engineer builds a Door. 05605_ U-05 Engineer lays Concrete. 05607_ U-05 Engineer builds a Wall. 05607_ U-05 Engineer lays Concrete. 05612_ U-05 Engineer builds a Wall. Map ----- +----------------------------------------------------+ | ????????????????????????????????"T???????????????? | | ????????????????????????????????""???????????????? | | ?????????????????????????????????????????????????? | | ?????????????????????????????????????????????????? | | ?????????????????????????????????????????????????? | | ?????????????????????????????????????????????????? | | ?????????????????????????????????????????????????? | | ?????????????????????????????????????????????????? | | ?????????????????????????????????????????????????? | | ????????????????????????? ???????????????????????? | | ????????????????????????? ???????????????????????? | | ????????????????????????? ???????????????????????? | | ????????????????????????? ???????????????????????? | | ????????????????????????? ???????????????????????? | | ????????????????????????? ???????????????????????? | | ????????????????????????? #??????????????????????? | | ????????????????????????# ??????????????????????? | | ????????????????????????# ??????????????????????? | | ????????????????????????# ??????????????????????? | | ????????????????????????+ ??????????????????????? | | ?????????###########????#p#??????????????????????? | | #####+#### x #????# #??????????????????????? | | " x #????# #??????????????????????? | | # !!X #????# #?????????x????????????? | | # !![ #????# #??????????????????????? | | / x = = [ #????#@#??????????????????????? | | #### !"" #????# #??????????????????????? | | #??# " F"" #????# #?????????x????????????? | | ] #??# """ #????# #??????????????????????? | | =[ #??############???# #????x?????????????????? | | [ #???############### #??????????????????????? | | [[ #?#######??#" #########??????????????? | | ##### #?# ##### ??????????? | | #???# ### "" x ??????????? | | #???# T ??????????? | | #???##### ^ ??????????? | | ????????# ##### ???????????? | | ????????#######???# ############???????????? | | ??????????????????#########??????????????????????? | | ?????????????????????????????????????????????????? | | | | | | | | | | | | | | | | | | | | | +----------------------------------------------------+ Best States ------------- Heat Dissipation 45 Energy Generation 19 Energy Capacity 265 Matter Stores 300 Matter Capacity 300 Sight Range 18 Robot Scan Range 14 Terrain Scan Range 16 Terrain Scan Density 10 Evasion (%) 63 Recoil Reduction 3 Offensive Hacking 11 Item Schematics ----------------- Lgt. Nuclear Core | -9/Materials | Scanalyzed Imp. Terrain Scanner | -9/Materials | Scanalyzed Mak. Hacking Suite | -8/Materials | Scanalyzed Robot Schematics ------------------ None Fabricated ------------ Lgt. Nuclear Core | x2 | -7/Factory Alien Tech Used ----------------- None Achievements -------------- None Challenges ------------ None Game ------ Seed TiamatVortexFlail Manual? 0 Play Time 00:56:50 Cumulative 28.7 hours Start 2024.07.02 @ 08:29:55 End 2024.07.17 @ 09:39:27 Sessions 7 Manual Loads 0 Difficulty Rogue Special Mode None Game No. 26 Rogue 26 Adventurer 0 Explorer 0 Win Type - Total 0 Types 0/0/0/0/0/0/0/0/0 Lore% 32 Gallery% 29 Achievement% 28 Wizard Run 0 Options --------- Layout 1 ASCII 0 Keyboard 0 Movement Arrows Keybinds 0 Fullscreen 2 Font 24/Terminus Map View 50x35 Zoom Use 0% Tactical HUD 1 Map Filters NONE Filters NONE Steam 1 RUN: 40e61fc0-dd94-446a-895b-fcff0ee695a0